[Event "HSG Open 2022 A"]
[Site "Hilversum, Netherlands"]
[Date "2022.06.19"]
[Round "6.3"]
[White "Leenhouts, Koen"]
[Black "Lanchava, Tea"]
[Result "1-0"]
[TimeControl "1:50 + 0.10"]
[WhiteElo "2440"]
[BlackElo "2231"]

1. d4 {[%clk 01:49:07]} {[%emt 00:01:11]} d6 {[%clk 01:50:03]} {[%emt
00:00:18]} 2. c4 {[%clk 01:48:23]} {[%emt 00:00:54]} g6 {[%clk 01:50:04]}
{[%emt 00:00:08]} 3. e4 {[%clk 01:48:17]} {[%emt 00:00:16]} Nd7 {[%clk
01:49:48]} {[%emt 00:00:26]} 4. Nc3 {[%clk 01:47:12]} {[%emt 00:01:15]} c6
{[%clk 01:48:25]} {[%emt 00:01:34]} 5. Be3 {[%clk 01:44:45]} {[%emt 00:02:37]}
e5 {[%clk 01:44:11]} {[%emt 00:04:24]} 6. d5 {[%clk 01:39:17]} {[%emt
00:05:39]} c5 {[%clk 01:43:42]} {[%emt 00:00:38]} 7. Bd3 {[%clk 01:35:04]}
{[%emt 00:04:22]} Nh6 {[%clk 01:41:19]} {[%emt 00:02:32]} 8. h4 {[%clk
01:30:37]} {[%emt 00:04:37]} Rg8 {[%clk 01:38:21]} {[%emt 00:03:09]} 9. g4
{[%clk 01:28:18]} {[%emt 00:02:29]} f6 {[%clk 01:37:57]} {[%emt 00:00:34]} 10.
f3 {[%clk 01:26:15]} {[%emt 00:02:13]} Nf7 {[%clk 01:35:30]} {[%emt 00:02:37]}
11. h5 {[%clk 01:21:50]} {[%emt 00:04:35]} Be7 {[%clk 01:22:37]} {[%emt
00:13:03]} 12. Nge2 {[%clk 01:20:34]} {[%emt 00:01:25]} Nf8 {[%clk 01:21:29]}
{[%emt 00:01:18]} 13. a3 {[%clk 01:18:28]} {[%emt 00:02:18]} f5 {[%clk
01:05:29]} {[%emt 00:16:09]} 14. hxg6 {[%clk 01:16:24]} {[%emt 00:02:14]} hxg6
{[%clk 01:05:34]} {[%emt 00:00:05]} 15. exf5 {[%clk 01:16:06]} {[%emt
00:00:29]} gxf5 {[%clk 01:05:32]} {[%emt 00:00:12]} 16. gxf5 {[%clk 01:16:11]}
{[%emt 00:00:05]} Bh4+ {[%clk 01:02:30]} {[%emt 00:03:13]} 17. Kd2 {[%clk
01:15:49]} {[%emt 00:00:30]} Bg5 {[%clk 01:02:10]} {[%emt 00:00:30]} 18. Bxg5
{[%clk 01:12:55]} {[%emt 00:03:04]} Rxg5 {[%clk 00:54:11]} {[%emt 00:08:09]} 19.
Ne4 {[%clk 01:12:27]} {[%emt 00:00:38]} Rg8 {[%clk 00:50:52]} {[%emt 00:03:29]}
20. Rg1 {[%clk 01:04:02]} {[%emt 00:08:35]} Rxg1 {[%clk 00:45:27]} {[%emt
00:05:35]} 21. Qxg1 {[%clk 01:04:03]} {[%emt 00:00:08]} Bxf5 {[%clk 00:45:13]}
{[%emt 00:00:25]} 22. Nxc5 {[%clk 01:01:37]} {[%emt 00:02:36]} Bxd3 {[%clk
00:27:19]} {[%emt 00:18:04]} 23. Nxd3 {[%clk 01:01:43]} {[%emt 00:00:04]} Qf6
{[%clk 00:27:11]} {[%emt 00:00:19]} 24. Nc3 {[%clk 01:00:33]} {[%emt 00:01:19]}
Ng5 {[%clk 00:23:57]} {[%emt 00:03:24]} 25. Ne4 {[%clk 00:55:21]} {[%emt
00:05:22]} Nxf3+ {[%clk 00:23:48]} {[%emt 00:00:20]} 26. Ke3 {[%clk 00:54:14]}
{[%emt 00:01:16]} Nxg1 {[%clk 00:15:26]} {[%emt 00:08:33]} 27. Nxf6+ {[%clk
00:54:16]} {[%emt 00:00:07]} Kf7 {[%clk 00:15:28]} {[%emt 00:00:09]} 28. Ne4
{[%clk 00:54:07]} {[%emt 00:00:18]} Nh3 {[%clk 00:15:21]} {[%emt 00:00:19]} 29.
Nxd6+ {[%clk 00:53:50]} {[%emt 00:00:26]} Ke7 {[%clk 00:15:01]} {[%emt
00:00:30]} 30. Nxb7 {[%clk 00:53:30]} {[%emt 00:00:30]} Nd7 {[%clk 00:14:49]}
{[%emt 00:00:22]} 31. Rh1 {[%clk 00:52:08]} {[%emt 00:01:30]} Ng5 {[%clk
00:14:47]} {[%emt 00:00:13]} 32. c5 {[%clk 00:44:43]} {[%emt 00:07:36]} Rf8
{[%clk 00:11:44]} {[%emt 00:03:13]} 33. c6 {[%clk 00:43:50]} {[%emt 00:01:02]}
Rf3+ {[%clk 00:10:54]} {[%emt 00:01:00]} 34. Ke2 {[%clk 00:42:18]} {[%emt
00:01:42]} e4 {[%clk 00:10:59]} {[%emt 00:00:06]} 35. d6+ {[%clk 00:41:29]}
{[%emt 00:00:59]} Ke6 {[%clk 00:10:36]} {[%emt 00:00:33]} 36. Ndc5+ {[%clk
00:40:23]} {[%emt 00:01:16]} Nxc5 {[%clk 00:09:00]} {[%emt 00:01:47]} 37. Nxc5+
{[%clk 00:40:24]} {[%emt 00:00:08]} Kxd6 {[%clk 00:08:09]} {[%emt 00:01:01]} 38.
Nxe4+ {[%clk 00:40:27]} {[%emt 00:00:06]} Kxc6 {[%clk 00:08:15]} {[%emt
00:00:05]} 39. Nxg5 {[%clk 00:40:24]} {[%emt 00:00:11]} Rg3 {[%clk 00:07:59]}
{[%emt 00:00:28]} 40. Ne4 {[%clk 00:40:28]} {[%emt 00:00:05]} Rg2+ {[%clk
00:07:59]} {[%emt 00:00:10]} 41. Nf2 {[%clk 00:40:33]} {[%emt 00:00:05]} Kb5
{[%clk 00:08:08]} {[%emt 00:00:02]} 1-0

[Event "HSG Open 2022 A"]
[Site "Hilversum, Netherlands"]
[Date "2022.06.19"]
[Round "6.4"]
[White "Pham, Khoi"]
[Black "Elgersma, Onno"]
[Result "1-0"]
[TimeControl "1:50 + 0.10"]
[WhiteElo "2244"]
[BlackElo "2312"]

1. e4 {[%clk 01:50:18]} {[%emt 00:00:01]} c6 {[%clk 01:50:10]} {[%emt
00:00:11]} 2. d4 {[%clk 01:50:22]} {[%emt 00:00:06]} d5 {[%clk 01:50:15]}
{[%emt 00:00:06]} 3. e5 {[%clk 01:50:28]} {[%emt 00:00:04]} Bf5 {[%clk
01:50:21]} {[%emt 00:00:04]} 4. h4 {[%clk 01:50:33]} {[%emt 00:00:04]} h5
{[%clk 01:50:04]} {[%emt 00:00:27]} 5. Bd3 {[%clk 01:50:38]} {[%emt 00:00:04]}
Bxd3 {[%clk 01:50:10]} {[%emt 00:00:05]} 6. Qxd3 {[%clk 01:50:43]} {[%emt
00:00:05]} Qa5+ {[%clk 01:50:16]} {[%emt 00:00:04]} 7. Nd2 {[%clk 01:50:46]}
{[%emt 00:00:07]} e6 {[%clk 01:50:22]} {[%emt 00:00:04]} 8. Ngf3 {[%clk
01:50:51]} {[%emt 00:00:05]} Nh6 {[%clk 01:50:22]} {[%emt 00:00:09]} 9. O-O
{[%clk 01:50:54]} {[%emt 00:00:08]} Nf5 {[%clk 01:50:26]} {[%emt 00:00:06]} 10.
Nb3 {[%clk 01:51:00]} {[%emt 00:00:04]} Qa6 {[%clk 01:50:32]} {[%emt 00:00:04]}
11. Qd1 {[%clk 01:51:05]} {[%emt 00:00:05]} b6 {[%clk 01:50:19]} {[%emt
00:00:23]} 12. Bg5 {[%clk 01:49:57]} {[%emt 00:01:17]} c5 {[%clk 01:48:42]}
{[%emt 00:01:48]} 13. c3 {[%clk 01:47:02]} {[%emt 00:03:05]} Nc6 {[%clk
01:47:57]} {[%emt 00:00:54]} 14. dxc5 {[%clk 01:46:15]} {[%emt 00:00:57]} Bxc5
{[%clk 01:47:17]} {[%emt 00:00:50]} 15. Nxc5 {[%clk 01:45:10]} {[%emt
00:01:16]} bxc5 {[%clk 01:47:20]} {[%emt 00:00:07]} 16. Re1 {[%clk 01:45:05]}
{[%emt 00:00:15]} Qb7 {[%clk 01:26:30]} {[%emt 00:21:00]} 17. b3 {[%clk
01:42:55]} {[%emt 00:02:20]} Qd7 {[%clk 01:26:16]} {[%emt 00:00:24]} 18. Nd2
{[%clk 01:39:40]} {[%emt 00:03:25]} a5 {[%clk 01:22:42]} {[%emt 00:03:44]} 19.
Nf1 {[%clk 01:31:36]} {[%emt 00:08:14]} a4 {[%clk 01:16:00]} {[%emt 00:06:52]}
20. Ne3 {[%clk 01:24:46]} {[%emt 00:07:00]} Nxe3 {[%clk 01:14:30]} {[%emt
00:01:41]} 21. Rxe3 {[%clk 01:24:44]} {[%emt 00:00:11]} d4 {[%clk 01:10:38]}
{[%emt 00:04:01]} 22. cxd4 {[%clk 01:23:12]} {[%emt 00:01:43]} cxd4 {[%clk
01:10:19]} {[%emt 00:00:29]} 23. Rd3 {[%clk 01:20:45]} {[%emt 00:02:36]} Qd5
{[%clk 00:52:00]} {[%emt 00:18:30]} 24. Rc1 {[%clk 01:12:33]} {[%emt 00:08:23]}
axb3 {[%clk 00:51:16]} {[%emt 00:00:53]} 25. axb3 {[%clk 01:12:30]} {[%emt
00:00:13]} Qe4 {[%clk 00:33:12]} {[%emt 00:18:15]} 26. Rc5 {[%clk 01:08:51]}
{[%emt 00:03:48]} Ra6 {[%clk 00:13:28]} {[%emt 00:19:54]} 27. b4 {[%clk
01:06:54]} {[%emt 00:02:07]} O-O {[%clk 00:06:16]} {[%emt 00:07:21]} 28. b5
{[%clk 01:06:17]} {[%emt 00:00:48]} Nb4 {[%clk 00:04:45]} {[%emt 00:01:41]} 29.
Rxd4 {[%clk 01:05:55]} {[%emt 00:00:32]} 1-0

[Event "HSG Open 2022 A"]
[Site "Hilversum, Netherlands"]
[Date "2022.06.19"]
[Round "6.5"]
[White "De Winter, Arthur"]
[Black "Van Foreest, Machteld"]
[Result "0-1"]
[TimeControl "1:50 + 0.10"]
[WhiteElo "2126"]
[BlackElo "2295"]

1. e4 {[%clk 01:50:17]} {[%emt 00:00:03]} c5 {[%clk 01:50:01]} {[%emt
00:00:20]} 2. Nf3 {[%clk 01:50:19]} {[%emt 00:00:07]} e6 {[%clk 01:50:05]}
{[%emt 00:00:06]} 3. b3 {[%clk 01:50:22]} {[%emt 00:00:08]} b6 {[%clk
01:50:06]} {[%emt 00:00:09]} 4. Bb2 {[%clk 01:50:17]} {[%emt 00:00:14]} Bb7
{[%clk 01:49:06]} {[%emt 00:01:11]} 5. Nc3 {[%clk 01:50:15]} {[%emt 00:00:11]}
Nc6 {[%clk 01:36:53]} {[%emt 00:12:23]} 6. d4 {[%clk 01:44:22]} {[%emt
00:06:03]} cxd4 {[%clk 01:35:54]} {[%emt 00:01:10]} 7. Nxd4 {[%clk 01:44:27]}
{[%emt 00:00:04]} Nf6 {[%clk 01:22:46]} {[%emt 00:13:19]} 8. Nxc6 {[%clk
01:33:37]} {[%emt 00:11:00]} dxc6 {[%clk 01:20:08]} {[%emt 00:02:47]} 9. e5
{[%clk 01:17:36]} {[%emt 00:16:11]} Qxd1+ {[%clk 01:16:01]} {[%emt 00:04:17]}
10. Rxd1 {[%clk 01:17:28]} {[%emt 00:00:17]} Nd5 {[%clk 01:16:06]} {[%emt
00:00:06]} 11. Ne4 {[%clk 01:16:23]} {[%emt 00:01:16]} O-O-O {[%clk 01:14:24]}
{[%emt 00:01:51]} 12. a3 {[%clk 01:10:32]} {[%emt 00:06:01]} Be7 {[%clk
01:09:55]} {[%emt 00:04:39]} 13. g3 {[%clk 01:04:53]} {[%emt 00:05:49]} c5
{[%clk 01:03:52]} {[%emt 00:06:14]} 14. Bg2 {[%clk 01:04:25]} {[%emt 00:00:37]}
f5 {[%clk 01:01:47]} {[%emt 00:02:16]} 15. Nd2 {[%clk 00:57:38]} {[%emt
00:06:57]} Kb8 {[%clk 00:53:39]} {[%emt 00:08:17]} 16. Rg1 {[%clk 00:54:43]}
{[%emt 00:03:05]} b5 {[%clk 00:51:48]} {[%emt 00:02:01]} 17. c4 {[%clk
00:43:56]} {[%emt 00:10:56]} bxc4 {[%clk 00:49:25]} {[%emt 00:02:34]} 18. Nxc4
{[%clk 00:44:01]} {[%emt 00:00:05]} Rd7 {[%clk 00:44:30]} {[%emt 00:05:05]} 19.
Na5 {[%clk 00:30:01]} {[%emt 00:14:10]} Ba8 {[%clk 00:40:34]} {[%emt 00:04:06]}
20. Ke2 {[%clk 00:28:31]} {[%emt 00:01:41]} Rhd8 {[%clk 00:37:50]} {[%emt
00:02:53]} 21. Rc1 {[%clk 00:25:38]} {[%emt 00:03:03]} Bg5 {[%clk 00:28:04]}
{[%emt 00:09:56]} 22. Rxc5 {[%clk 00:19:56]} {[%emt 00:05:52]} Nf4+ {[%clk
00:17:38]} {[%emt 00:10:36]} 23. gxf4 {[%clk 00:19:49]} {[%emt 00:00:17]} Rd2+
{[%clk 00:17:43]} {[%emt 00:00:05]} 24. Ke1 {[%clk 00:17:28]} {[%emt 00:02:31]}
Rd1+ {[%clk 00:15:01]} {[%emt 00:02:51]} 25. Ke2 {[%clk 00:17:35]} {[%emt
00:00:04]} R8d2+ {[%clk 00:14:39]} {[%emt 00:00:32]} 26. Ke3 {[%clk 00:17:40]}
{[%emt 00:00:05]} Rd3+ {[%clk 00:14:03]} {[%emt 00:00:46]} 27. Ke2 {[%clk
00:17:45]} {[%emt 00:00:06]} R1d2+ {[%clk 00:14:01]} {[%emt 00:00:12]} 28. Ke1
{[%clk 00:16:15]} {[%emt 00:01:40]} Bh4 {[%clk 00:13:12]} {[%emt 00:00:58]} 29.
Rb5+ {[%clk 00:11:32]} {[%emt 00:04:54]} Kc8 {[%clk 00:13:09]} {[%emt
00:00:12]} 30. Bxa8 {[%clk 00:11:33]} {[%emt 00:00:09]} Rxf2 {[%clk 00:09:28]}
{[%emt 00:03:51]} 31. Rc5+ {[%clk 00:06:38]} {[%emt 00:05:05]} Kb8 {[%clk
00:09:01]} {[%emt 00:00:37]} 32. Bb7 {[%clk 00:03:21]} {[%emt 00:03:27]} Rxh2+
{[%clk 00:08:58]} {[%emt 00:00:13]} 0-1

[Event "HSG Open 2022 A"]
[Site "Hilversum, Netherlands"]
[Date "2022.06.19"]
[Round "6.6"]
[White "Becx, Cesar"]
[Black "Grutter, Tim"]
[Result "1/2-1/2"]
[TimeControl "1:50 + 0.10"]
[WhiteElo "2139"]
[BlackElo "2234"]

1. f4 {[%clk 01:50:19]} {[%emt 00:00:02]} g6 {[%clk 01:50:17]} {[%emt
00:00:03]} 2. Nf3 {[%clk 01:50:25]} {[%emt 00:00:04]} Bg7 {[%clk 01:50:23]}
{[%emt 00:00:04]} 3. d3 {[%clk 01:50:17]} {[%emt 00:00:18]} c5 {[%clk
01:50:00]} {[%emt 00:00:34]} 4. g3 {[%clk 01:50:22]} {[%emt 00:00:04]} e6
{[%clk 01:49:25]} {[%emt 00:00:45]} 5. Bg2 {[%clk 01:50:28]} {[%emt 00:00:04]}
Ne7 {[%clk 01:49:32]} {[%emt 00:00:03]} 6. O-O {[%clk 01:50:21]} {[%emt
00:00:17]} Nbc6 {[%clk 01:48:36]} {[%emt 00:01:06]} 7. Nc3 {[%clk 01:49:53]}
{[%emt 00:00:38]} d5 {[%clk 01:43:01]} {[%emt 00:05:45]} 8. e4 {[%clk
01:47:11]} {[%emt 00:02:51]} dxe4 {[%clk 01:39:59]} {[%emt 00:03:13]} 9. dxe4
{[%clk 01:43:35]} {[%emt 00:03:46]} Qxd1 {[%clk 01:37:56]} {[%emt 00:02:13]} 10.
Rxd1 {[%clk 01:40:11]} {[%emt 00:03:34]} Nd4 {[%clk 01:22:23]} {[%emt
00:15:43]} 11. Nxd4 {[%clk 01:28:50]} {[%emt 00:11:31]} Bxd4+ {[%clk 01:22:16]}
{[%emt 00:00:17]} 12. Kf1 {[%clk 01:27:52]} {[%emt 00:01:08]} Bxc3 {[%clk
01:20:48]} {[%emt 00:01:38]} 13. bxc3 {[%clk 01:27:58]} {[%emt 00:00:04]} Bd7
{[%clk 01:04:21]} {[%emt 00:16:36]} 14. c4 {[%clk 01:22:02]} {[%emt 00:06:06]}
O-O-O {[%clk 01:01:39]} {[%emt 00:02:53]} 15. Bb2 {[%clk 01:22:07]} {[%emt
00:00:03]} Rhe8 {[%clk 01:01:44]} {[%emt 00:00:06]} 16. Bf6 {[%clk 01:21:18]}
{[%emt 00:00:59]} Ba4 {[%clk 01:00:27]} {[%emt 00:01:27]} 17. Rxd8+ {[%clk
00:52:16]} {[%emt 00:29:13]} Kxd8 {[%clk 01:00:19]} {[%emt 00:00:18]} 18. Ke2
{[%clk 00:51:58]} {[%emt 00:00:27]} Kc8 {[%clk 00:54:21]} {[%emt 00:06:09]} 19.
Kd3 {[%clk 00:27:41]} {[%emt 00:24:26]} Rd8+ {[%clk 00:50:01]} {[%emt
00:04:31]} 20. Kc3 {[%clk 00:27:27]} {[%emt 00:00:24]} Rd7 {[%clk 00:50:02]}
{[%emt 00:00:08]} 21. Bxe7 {[%clk 00:27:19]} {[%emt 00:00:19]} Rxe7 {[%clk
00:50:04]} {[%emt 00:00:08]} 22. e5 {[%clk 00:27:20]} {[%emt 00:00:08]} Rd7
{[%clk 00:45:46]} {[%emt 00:04:29]} 23. Bf3 {[%clk 00:21:16]} {[%emt 00:06:13]}
Kc7 {[%clk 00:45:15]} {[%emt 00:00:41]} 24. Rd1 {[%clk 00:17:41]} {[%emt
00:03:45]} Rxd1 {[%clk 00:45:18]} {[%emt 00:00:07]} 25. Bxd1 {[%clk 00:17:46]}
{[%emt 00:00:05]} Bc6 {[%clk 00:45:24]} {[%emt 00:00:04]} 26. g4 {[%clk
00:13:33]} {[%emt 00:04:23]} a6 {[%clk 00:37:11]} {[%emt 00:08:24]} 27. Be2
{[%clk 00:09:15]} {[%emt 00:04:28]} Be4 {[%clk 00:35:48]} {[%emt 00:01:32]} 28.
Bd3 {[%clk 00:08:35]} {[%emt 00:00:51]} Bf3 {[%clk 00:35:05]} {[%emt 00:00:52]}
29. g5 {[%clk 00:08:32]} {[%emt 00:00:13]} Kb6 {[%clk 00:33:34]} {[%emt
00:01:42]} 30. Kb3 {[%clk 00:07:25]} {[%emt 00:01:16]} Ka5 {[%clk 00:31:06]}
{[%emt 00:02:39]} 31. Ka3 {[%clk 00:05:07]} {[%emt 00:02:28]} Bc6 {[%clk
00:27:00]} {[%emt 00:04:15]} 32. h4 {[%clk 00:04:10]} {[%emt 00:01:07]} b5
{[%clk 00:25:31]} {[%emt 00:01:40]} 33. cxb5 {[%clk 00:03:23]} {[%emt
00:00:57]} axb5 {[%clk 00:24:06]} {[%emt 00:01:36]} 34. c4 {[%clk 00:03:03]}
{[%emt 00:00:29]} b4+ {[%clk 00:21:21]} {[%emt 00:02:55]} 35. Kb2 {[%clk
00:02:26]} {[%emt 00:00:47]} Bf3 {[%clk 00:20:38]} {[%emt 00:00:54]} 36. Bf1
{[%clk 00:02:00]} {[%emt 00:00:36]} Ka4 {[%clk 00:19:13]} {[%emt 00:01:35]} 37.
Bd3 {[%clk 00:01:57]} {[%emt 00:00:13]} Ka5 {[%emt 00:01:01]} 1/2-1/2

[Event "HSG Open 2022 A"]
[Site "Hilversum, Netherlands"]
[Date "2022.06.19"]
[Round "6.7"]
[White "Khabichev, Valeriy"]
[Black "De Groote, Ewoud"]
[Result "0-1"]
[TimeControl "1:50 + 0.10"]
[WhiteElo "2075"]
[BlackElo "2233"]

1. e4 {[%clk 01:50:14]} {[%emt 00:00:06]} e5 {[%clk 01:50:00]} {[%emt
00:00:21]} 2. Nf3 {[%clk 01:50:17]} {[%emt 00:00:07]} Nc6 {[%clk 01:50:06]}
{[%emt 00:00:04]} 3. Bc4 {[%clk 01:50:10]} {[%emt 00:00:17]} Bc5 {[%clk
01:49:21]} {[%emt 00:00:55]} 4. b4 {[%clk 01:49:52]} {[%emt 00:00:28]} Bxb4
{[%clk 01:46:31]} {[%emt 00:03:00]} 5. c3 {[%clk 01:49:59]} {[%emt 00:00:02]}
Be7 {[%clk 01:44:15]} {[%emt 00:02:26]} 6. d4 {[%clk 01:49:37]} {[%emt
00:00:32]} Na5 {[%clk 01:41:13]} {[%emt 00:03:12]} 7. Bd3 {[%clk 01:44:48]}
{[%emt 00:04:59]} d6 {[%clk 01:32:06]} {[%emt 00:09:16]} 8. dxe5 {[%clk
01:38:35]} {[%emt 00:06:23]} dxe5 {[%clk 01:21:43]} {[%emt 00:10:34]} 9. Nxe5
{[%clk 01:36:39]} {[%emt 00:02:06]} Nf6 {[%clk 01:13:55]} {[%emt 00:07:58]} 10.
O-O {[%clk 01:33:17]} {[%emt 00:03:32]} O-O {[%clk 01:10:37]} {[%emt 00:03:28]}
11. Qa4 {[%clk 01:28:00]} {[%emt 00:05:27]} c5 {[%clk 01:01:42]} {[%emt
00:09:05]} 12. Rd1 {[%clk 01:18:49]} {[%emt 00:09:21]} Qc7 {[%clk 00:57:56]}
{[%emt 00:03:56]} 13. Nf3 {[%clk 01:13:36]} {[%emt 00:05:23]} c4 {[%clk
00:56:22]} {[%emt 00:01:45]} 14. e5 {[%clk 01:00:24]} {[%emt 00:13:21]} cxd3
{[%clk 00:51:10]} {[%emt 00:05:22]} 15. exf6 {[%clk 00:58:45]} {[%emt
00:01:50]} Bxf6 {[%clk 00:51:16]} {[%emt 00:00:03]} 16. Rxd3 {[%clk 00:51:50]}
{[%emt 00:07:05]} Qc4 {[%clk 00:40:02]} {[%emt 00:11:24]} 17. Qxc4 {[%clk
00:47:48]} {[%emt 00:04:12]} Nxc4 {[%clk 00:40:10]} {[%emt 00:00:02]} 18. Nd4
{[%clk 00:42:40]} {[%emt 00:05:17]} Re8 {[%clk 00:36:17]} {[%emt 00:04:03]} 19.
Bd2 {[%clk 00:34:29]} {[%emt 00:08:22]} Bd7 {[%clk 00:33:53]} {[%emt 00:02:35]}
20. h3 {[%clk 00:27:28]} {[%emt 00:07:11]} Rad8 {[%clk 00:28:42]} {[%emt
00:05:21]} 21. g4 {[%clk 00:26:48]} {[%emt 00:00:49]} Ba4 {[%clk 00:26:48]}
{[%emt 00:02:04]} 22. Rg3 {[%clk 00:21:41]} {[%emt 00:05:17]} Bxd4 {[%clk
00:24:50]} {[%emt 00:02:09]} 23. cxd4 {[%clk 00:21:41]} {[%emt 00:00:09]} Rxd4
{[%clk 00:23:11]} {[%emt 00:01:50]} 24. Bc3 {[%clk 00:18:48]} {[%emt 00:03:02]}
Rd1+ {[%clk 00:23:14]} {[%emt 00:00:07]} 25. Kh2 {[%clk 00:18:34]} {[%emt
00:00:24]} Re2 {[%clk 00:20:32]} {[%emt 00:02:52]} 26. Rg1 {[%clk 00:14:12]}
{[%emt 00:04:32]} Rxf2+ {[%clk 00:18:36]} {[%emt 00:02:06]} 27. Kg3 {[%clk
00:14:15]} {[%emt 00:00:07]} Rxg1+ {[%clk 00:16:32]} {[%emt 00:02:15]} 28. Kxf2
{[%clk 00:14:22]} {[%emt 00:00:03]} Rh1 {[%clk 00:14:02]} {[%emt 00:02:40]} 29.
Be1 {[%clk 00:12:26]} {[%emt 00:02:05]} Rxh3 {[%clk 00:12:10]} {[%emt
00:02:02]} 30. Nc3 {[%clk 00:12:35]} {[%emt 00:00:01]} Bc6 {[%clk 00:11:40]}
{[%emt 00:00:40]} 31. Rd1 {[%clk 00:12:44]} {[%emt 00:00:02]} Rf3+ {[%clk
00:11:17]} {[%emt 00:00:32]} 32. Ke2 {[%clk 00:12:40]} {[%emt 00:00:14]} h6
{[%clk 00:08:45]} {[%emt 00:02:42]} 33. Rd4 {[%clk 00:12:33]} {[%emt 00:00:17]}
Ne5 {[%clk 00:08:06]} {[%emt 00:00:51]} 34. Bd2 {[%clk 00:11:50]} {[%emt
00:00:51]} Rh3 {[%clk 00:07:00]} {[%emt 00:01:16]} 35. Rd8+ {[%clk 00:09:35]}
{[%emt 00:02:25]} Kh7 {[%clk 00:07:09]} {[%emt 00:00:01]} 36. g5 {[%clk
00:09:32]} {[%emt 00:00:13]} Rh2+ {[%clk 00:06:29]} {[%emt 00:00:51]} 37. Kd1
{[%clk 00:09:14]} {[%emt 00:00:29]} Nf3 {[%clk 00:06:24]} {[%emt 00:00:14]} 38.
Be3 {[%clk 00:08:14]} {[%emt 00:01:09]} hxg5 {[%clk 00:06:15]} {[%emt
00:00:20]} 39. Bxa7 {[%clk 00:08:22]} {[%emt 00:00:02]} g4 {[%clk 00:05:27]}
{[%emt 00:00:57]} 40. Bb8 {[%clk 00:08:18]} {[%emt 00:00:14]} Rh1+ {[%clk
00:04:58]} {[%emt 00:00:40]} 41. Kc2 {[%clk 00:08:27]} {[%emt 00:00:01]} Re1
{[%clk 00:04:24]} {[%emt 00:00:45]} 42. Bg3 {[%clk 00:08:16]} {[%emt 00:00:20]}
Rg1 {[%clk 00:03:44]} {[%emt 00:00:50]} 43. Bc7 {[%clk 00:08:07]} {[%emt
00:00:19]} g3 {[%clk 00:03:20]} {[%emt 00:00:34]} 44. Bb6 {[%clk 00:07:26]}
{[%emt 00:00:51]} Re1 {[%clk 00:03:17]} {[%emt 00:00:12]} 0-1